fUST/lending_fUST_20250716
["ID","MTS","AMOUNT","RATE_DAILY","PERIOD"]
[372545560,1752678661438,-507.33337851,0.00023507,2]
[372545561,1752678661449,-220.4,0.0002355,6]
[372545562,1752678661459,-471.71,0.00023561,2]
[372545563,1752678661470,-508.85,0.00023561,2]
[372545564,1752678661481,-565.48,0.00023561,2]
[372545565,1752678661492,-498.46,0.00023561,2]
[372545566,1752678661503,-575.56,0.00023561,2]
[372545567,1752678661513,-736.25,0.00023561,2]
[372545568,1752678661523,-575.72324012,0.00023561,2]
[372545569,1752678661533,-775.35,0.00023561,2]
[372545570,1752678661543,-460.0,0.00023561,2]
[372545571,1752678661553,-460.0,0.00023561,2]
[372545572,1752678661562,-214.65,0.00023561,2]
[372545573,1752678661572,-214.65,0.00023561,2]
[372545574,1752678661582,-214.65,0.00023561,2]
[372545575,1752678661591,-214.65,0.00023561,2]
[372545576,1752678661601,-214.65,0.00023561,2]
[372545577,1752678661611,-214.65,0.00023561,2]
[372545578,1752678661621,-214.65,0.00023561,2]
[372545579,1752678661631,-214.65,0.00023561,2]
[372545580,1752678661642,-214.65,0.00023561,2]
[372545581,1752678661653,-214.65,0.00023561,2]
[372545582,1752678661662,-214.65,0.00023561,2]
[372545583,1752678661672,-214.65,0.00023561,2]
[372545584,1752678661682,-214.65,0.00023561,2]
[372545585,1752678661692,-214.65,0.00023561,2]
[372545586,1752678661702,-214.65,0.00023561,2]
[372545587,1752678661712,-214.65,0.00023561,2]
[372545588,1752678661722,-214.65,0.00023561,2]
[372545589,1752678661732,-2705.43,0.00023561,2]
[372545590,1752678661746,-460.0,0.00023561,2]
[372545591,1752678661756,-1116.34,0.00023561,2]
[372545592,1752678661765,-460.0,0.00023561,2]
[372545593,1752678661775,-718.95,0.00023561,2]
[372545594,1752678661787,-5356.15,0.00023561,2]
[372545595,1752678661958,-2292.35,0.00023561,2]
[372545596,1752678661968,-1737.25,0.00023561,2]
[372545597,1752678661978,-641.9,0.00023561,2]
[372545598,1752678661990,-460.0,0.00023561,2]
[372545599,1752678662000,-1414.64,0.00023561,2]
[372545600,1752678662010,-846.66,0.00023561,2]
[372545601,1752678662019,-3615.07,0.00023561,2]
[372545602,1752678662030,-478.86,0.00023561,2]
[372545603,1752678662040,-506.39,0.00023561,2]
[372545604,1752678662049,-912.0,0.00023561,2]
[372545605,1752678662059,-6795.07,0.00023561,2]
[372545606,1752678662070,-1065.94,0.00023561,2]
[372545607,1752678662079,-5003.29,0.00023561,2]
[372545608,1752678662089,-524.52,0.00023561,2]
[372545609,1752678662098,-460.0,0.00023561,2]
[372545610,1752678662107,-460.0,0.00023561,2]
[372545611,1752678662117,-460.0,0.00023561,2]
[372545612,1752678662126,-460.0,0.00023561,2]
[372545613,1752678662135,-264.45128678,0.00023561,2]
[372545614,1752678662145,-677.7,0.00023561,2]
[372545615,1752678662155,-2241.66,0.00023561,2]
[372545616,1752678662164,-3256.22,0.00023561,2]
[372545617,1752678662174,-2858.44,0.00023561,2]
[372545618,1752678662183,-2825.25,0.00023561,2]
[372545619,1752678662193,-460.0,0.00023561,2]
[372545620,1752678662203,-827.57,0.00023561,2]
[372545621,1752678662212,-1898.44,0.00023561,2]
[372545622,1752678662222,-918.75,0.00023561,2]
[372545623,1752678662231,-968.18,0.00023561,2]
[372545624,1752678662244,-460.0,0.00023561,2]
[372545625,1752678662254,-540.85,0.00023561,2]
[372545626,1752678662264,-587.96,0.00023561,2]
[372545627,1752678662273,-460.0,0.00023561,2]
[372545628,1752678662283,-520.43,0.00023561,2]
[372545629,1752678662293,-500.0,0.00023562,2]
[372545630,1752678662303,-1950.0,0.00023562,2]
[372545631,1752678662317,-500.0,0.00023562,2]
[372545632,1752678662327,-151.0,0.00023562,2]
[372545633,1752678662336,-151.0,0.00023562,2]
[372545634,1752678662346,-729.0,0.00023562,2]
[372545635,1752678662357,-456.0,0.00023562,2]
[372545636,1752678662366,-500.0,0.00023562,2]
[372545637,1752678662376,-500.0,0.00023562,2]
[372545638,1752678662387,-151.0,0.00023562,2]
[372545639,1752678662396,-254.981468,0.00023572,8]
[372545640,1752678662406,-254.981468,0.00023597,7]
[372545641,1752678662415,-2004.37694132,0.00023616,2]
[372545642,1752678662425,-1500.0,0.00023622,2]
[372545643,1752678662435,-160.0,0.00023624,11]
[372545644,1752678662444,-3845.19834937,0.00023624,9]
[372545645,1752678662454,-200.0,0.0002364,8]
[372545646,1752678662464,-352.80024,0.00023641,2]
[372545647,1752678662474,-507.33337851,0.00023644,2]
[372545648,1752678662484,-2055.41,0.00023705,2]
[372545649,1752678662496,-254.981468,0.00023709,8]
[372545650,1752678662505,-760.0,0.00023738,2]
[372545651,1752678662516,-991.3853258,0.00023753,3]
[372545652,1752678662526,-507.33337851,0.00023753,2]
[372545653,1752678662535,-160.0,0.000238,3]
[372545654,1752678662545,-9839.23235418,0.000238,2]
[372545655,1752678662555,-1523.25395318,0.00023808,2]
[372545656,1752678662565,-3845.19834937,0.00023831,10]
[372545657,1752678662575,-471.71,0.00023835,2]
[372545658,1752678662585,-508.85,0.00023835,2]
[372545659,1752678662594,-565.48,0.00023835,2]
[372545660,1752678662604,-498.46,0.00023835,2]
[372545661,1752678662614,-575.56,0.00023835,2]
[372545662,1752678662624,-736.25,0.00023835,2]
[372545663,1752678662634,-775.35,0.00023835,2]
[372545664,1752678662645,-460.0,0.00023835,2]
[372545665,1752678662655,-460.0,0.00023835,2]
[372545666,1752678662666,-214.65,0.00023835,2]
[372545667,1752678662677,-2705.43,0.00023835,2]
[372545668,1752678662687,-460.0,0.00023835,2]
[372545669,1752678662697,-1116.34,0.00023835,2]
[372545670,1752678662706,-460.0,0.00023835,2]
[372545671,1752678662716,-718.95,0.00023835,2]
[372545672,1752678662727,-5356.15,0.00023835,2]
[372545673,1752678662738,-2292.35,0.00023835,2]
[372545674,1752678662748,-1737.25,0.00023835,2]
[372545675,1752678662758,-641.9,0.00023835,2]
[372545676,1752678662767,-460.0,0.00023835,2]
[372545677,1752678662778,-1414.64,0.00023835,2]
[372545678,1752678662787,-537.73249712,0.00023835,2]
[372545679,1752678662837,-3077.33750288,0.00023835,2]
[372545680,1752678662847,-846.66,0.00023835,2]
[372545681,1752678662857,-478.86,0.00023835,2]
[372545682,1752678662867,-506.39,0.00023835,2]
[372545683,1752678662876,-696.1384856,0.00023835,2]
[372545684,1752678662888,-215.8615144,0.00023835,2]
[372545685,1752678662898,-4737.62946203,0.00023835,2]
[372545686,1752678662910,-2057.44053797,0.00023835,2]
[372545687,1752678662920,-1065.94,0.00023835,2]
[372545688,1752678662930,-3359.70872521,0.00023835,2]
[372545689,1752678662964,-1191.1255437,0.00019166,2]
[372545690,1752678662975,-9897.5825,0.00019166,2]
[372545691,1752678662989,-2009.66600816,0.00019166,2]
[372545692,1752678663232,-500.0,0.0001916,2]
[372545693,1752678663246,-97.12322729,0.00019166,2]
[372545694,1752678663306,-6368.90828183,0.00019166,2]
[372545695,1752678663319,-6288.03409309,0.00019452,2]
[372545696,1752678663329,-476.07036022,0.00019929,2]
[372545697,1752678663339,-160.0,0.00020526,3]
[372545698,1752678663349,-82982.17706865,0.00020613,2]
[372545699,1752678663359,-4413.79,0.00021369,2]
[372545700,1752678663369,-4413.79,0.00021643,2]
[372545701,1752678663379,-2000.0,0.00021686,2]
[372545702,1752678663389,-4413.79,0.00021917,2]
[372545703,1752678663401,-160.0,0.00022,7]
[372545704,1752678663411,-4413.79,0.00022191,2]
[372545705,1752678663421,-4413.79,0.00022465,2]
[372545706,1752678663432,-4413.79,0.00022739,2]
[372545707,1752678663443,-1532.769414,0.00023,2]
[372545708,1752678663453,-4413.79,0.00023013,2]
[372545709,1752678663463,-4413.79,0.00023287,2]
[372545710,1752678663473,-4413.79,0.00023561,2]
[372545711,1752678663483,-1643.58127479,0.00023835,2]
[372545712,1752678663507,-524.52,0.00023835,2]
[372545713,1752678663518,-268.38,0.00023835,2]
[372545714,1752678663528,-271.94,0.00023835,2]
[372545715,1752678663539,-460.0,0.00023835,2]
[372545716,1752678663549,-460.0,0.00023835,2]
[372545717,1752678663560,-677.7,0.00023835,2]
[372545718,1752678663570,-2241.66,0.00023835,2]
[372545719,1752678663580,-3256.22,0.00023835,2]
[372545720,1752678663591,-2858.44,0.00023835,2]
[372545721,1752678663601,-2825.25,0.00023835,2]
[372545722,1752678663612,-460.0,0.00023835,2]
[372545723,1752678663623,-827.57,0.00023835,2]
[372545724,1752678663633,-1898.44,0.00023835,2]
[372545725,1752678663643,-918.75,0.00023835,2]
[372545726,1752678663654,-968.18,0.00023835,2]
[372545727,1752678663664,-460.0,0.00023835,2]
[372545728,1752678663675,-540.85,0.00023835,2]
[372545729,1752678663685,-587.96,0.00023835,2]
[372545730,1752678663695,-460.0,0.00023835,2]
[372545731,1752678663706,-520.43,0.00023835,2]
[372545732,1752678663717,-4413.79,0.00023835,2]
[372545733,1752678663727,-500.0,0.00023836,2]
[372545734,1752678663737,-1950.0,0.00023836,2]
[372545735,1752678663747,-500.0,0.00023836,2]
[372545736,1752678663758,-151.0,0.00023836,2]
[372545737,1752678663768,-246.45058151,0.00023836,2]
[372545738,1752678663778,-729.0,0.00023836,2]
[372545739,1752678663789,-456.0,0.00023836,2]
[372545740,1752678663799,-500.0,0.00023836,2]
[372545741,1752678663809,-500.0,0.00023836,2]
[372545742,1752678663819,-151.0,0.00023836,2]
[372545743,1752678663829,-254.981468,0.00023845,8]
[372545744,1752678663839,-2858.45138413,0.00023861,2]
[372545745,1752678663849,-507.33337851,0.00023863,2]
[372545746,1752678663859,-828.91059772,0.000239,2]
[372545747,1752678663870,-220.4,0.00023908,6]
[372545748,1752678663880,-160.0,0.00023953,12]
[372545749,1752678663891,-254.981468,0.00023969,14]
[372545750,1752678663901,-507.33337851,0.00023973,2]
[372545751,1752678663911,-5888.0,0.00023986,2]
[372545752,1752678663922,-160.0,0.00024,7]
[372545753,1752678663932,-285.40740914,0.00024,7]
[372545754,1752678663943,-2719.0,0.00024,7]
[372545755,1752678663953,-332.62332807,0.00024,14]
[372545756,1752678663964,-1692.37432593,0.00024,2]
[372545757,1752678663974,-10142.16600894,0.00024,2]
[372545758,1752678663986,-453.52457889,0.00024,2]
[372545759,1752678663996,-161.7848685,0.00024,2]
[372545760,1752678664007,-685.54,0.00024,14]
[372545761,1752678664018,-178.85127462,0.00024,7]
[372545762,1752678664028,-160.0,0.00024,7]
[372545763,1752678664039,-160.0,0.00024,10]
[372545764,1752678664050,-41294.29,0.00024,2]
[372545765,1752678664061,-525.58295679,0.00024,7]
[372545766,1752678664071,-525.58295679,0.00024,10]
[372545767,1752678664082,-230.8109288,0.00024,7]
[372545768,1752678664094,-230.8109288,0.00024,10]
[372545769,1752678664106,-160.0,0.00024,7]
[372545770,1752678664118,-160.0,0.00024,10]
[372545771,1752678664128,-160.0,0.00024,7]
[372545772,1752678664138,-160.0,0.00024,10]
[372545773,1752678664148,-160.0,0.00024,7]
[372545774,1752678664158,-160.0,0.00024,10]
[372545775,1752678664168,-838.99048831,0.00024,7]
[372545776,1752678664178,-838.99048831,0.00024,10]
[372545777,1752678664187,-215.5496034,0.00024,7]
[372545778,1752678664197,-215.5496034,0.00024,10]
[372545779,1752678664211,-500.0,0.00024027,30]
[372545780,1752678664222,-3845.19834937,0.00024038,10]
[372545781,1752678664231,-254.981468,0.00024059,2]
[372545782,1752678664245,-254.981468,0.00024065,6]
[372545783,1752678664255,-205.0,0.000241,2]
[372545784,1752678664266,-471.71,0.00024109,2]
[372545785,1752678664276,-508.85,0.00024109,2]
[372545786,1752678664286,-565.48,0.00024109,2]
[372545787,1752678664296,-498.46,0.00024109,2]
[372545788,1752678664306,-575.56,0.00024109,2]
[372545789,1752678664319,-736.25,0.00024109,2]
[372545790,1752678664329,-775.35,0.00024109,2]
[372545791,1752678664339,-460.0,0.00024109,2]
[372545792,1752678664348,-460.0,0.00024109,2]
[372545793,1752678664359,-214.65,0.00024109,2]
[372545794,1752678664369,-2705.43,0.00024109,2]
[372545795,1752678664378,-460.0,0.00024109,2]
[372545796,1752678664389,-1116.34,0.00024109,2]
[372545797,1752678664399,-460.0,0.00024109,2]
[372545798,1752678664409,-718.95,0.00024109,2]
[372545799,1752678664419,-5356.15,0.00024109,2]
[372545800,1752678664429,-2292.35,0.00024109,2]
[372545801,1752678664440,-1737.25,0.00024109,2]
[372545802,1752678664450,-641.9,0.00024109,2]
[372545803,1752678664460,-1414.64,0.00024109,2]
[372545804,1752678664471,-460.0,0.00024109,2]
[372545805,1752678664482,-3615.07,0.00024109,2]
[372545806,1752678664496,-846.66,0.00024109,2]
[372545807,1752678664506,-478.86,0.00024109,2]
[372545808,1752678664516,-506.39,0.00024109,2]
[372545809,1752678664526,-912.0,0.00024109,2]
[372545810,1752678664536,-6795.07,0.00024109,2]
[372545811,1752678664546,-1065.94,0.00024109,2]
[372545812,1752678664556,-5003.29,0.00024109,2]
[372545813,1752678664566,-524.52,0.00024109,2]
[372545814,1752678664575,-460.0,0.00024109,2]
[372545815,1752678664585,-460.0,0.00024109,2]
[372545816,1752678664595,-677.7,0.00024109,2]
[372545817,1752678664605,-2241.66,0.00024109,2]
[372545818,1752678664617,-3256.22,0.00024109,2]
[372545819,1752678664627,-2858.44,0.00024109,2]
[372545820,1752678664638,-2825.25,0.00024109,2]
[372545821,1752678664796,-347.46,0.00024109,2]
[372545822,1752678664806,-827.57,0.00024109,2]
[372545823,1752678664816,-1898.44,0.00024109,2]
[372545824,1752678664826,-918.75,0.00024109,2]
[372545825,1752678664835,-968.18,0.00024109,2]
[372545826,1752678664845,-460.0,0.00024109,2]
[372545827,1752678664854,-151.0,0.00024109,7]
[372545828,1752678664864,-540.85,0.00024109,2]
[372545829,1752678664874,-587.96,0.00024109,2]
[372545830,1752678664883,-460.0,0.00024109,2]
[372545831,1752678664894,-520.43,0.00024109,2]
[372545832,1752678664904,-649.35049995,0.0002411,2]
[372545833,1752678664914,-1950.0,0.0002411,2]
[372545834,1752678664924,-307.19342844,0.0002411,2]
[372545835,1752678664933,-200.53143426,0.0002411,2]
[372545836,1752678664944,-729.0,0.0002411,2]
[372545837,1752678664953,-456.0,0.0002411,2]
[372545838,1752678664963,-426.55852305,0.0002411,2]
[372545839,1752678664972,-500.0,0.0002411,2]
[372545840,1752678664982,-220.02706467,0.0002411,2]
[372545841,1752678664995,-5888.0,0.00024147,2]
[372545842,1752678665005,-214.0,0.00024164,7]
[372545843,1752678665015,-2000.0,0.0002417,2]
[372545844,1752678665024,-428.8776545,0.000242,2]
[372545845,1752678665034,-5888.0,0.00024231,2]
[372545846,1752678665046,-2858.45138413,0.00024235,2]
[372545847,1752678665055,-3845.19834937,0.00024245,10]
[372545848,1752678665067,-5888.0,0.00024262,2]
[372545849,1752678665077,-220.4,0.00024266,6]
[372545850,1752678665086,-160.0,0.00024282,13]
[372545851,1752678665096,-860.0,0.00024286,2]
[372545852,1752678665106,-254.981468,0.00024294,7]
[372545853,1752678665117,-471.71,0.00024383,2]
[372545854,1752678665126,-508.85,0.00024383,2]
[372545855,1752678665136,-565.48,0.00024383,2]
[372545856,1752678665146,-498.46,0.00024383,2]
[372545857,1752678665156,-575.56,0.00024383,2]
[372545858,1752678665165,-736.25,0.00024383,2]
[372545859,1752678665176,-775.35,0.00024383,2]
[372545860,1752678665186,-460.0,0.00024383,2]
[372545861,1752678665195,-460.0,0.00024383,2]
[372545862,1752678665205,-214.65,0.00024383,2]
[372545863,1752678665215,-2705.43,0.00024383,2]
[372545864,1752678665225,-460.0,0.00024383,2]
[372545865,1752678665238,-151.0,0.00024383,7]
[372545866,1752678665248,-1116.34,0.00024383,2]
[372545867,1752678665257,-460.0,0.00024383,2]
[372545868,1752678665267,-151.0,0.00024383,7]
[372545869,1752678665277,-718.95,0.00024383,2]
[372545870,1752678665286,-5356.15,0.00024383,2]
[372545871,1752678665295,-2292.35,0.00024383,2]
[372545872,1752678665306,-1737.25,0.00024383,2]
[372545873,1752678665317,-641.9,0.00024383,2]
[372545874,1752678665326,-1414.64,0.00024383,2]
[372545875,1752678665335,-460.0,0.00024383,2]
[372545876,1752678665345,-3615.07,0.00024383,2]
[372545877,1752678665355,-846.66,0.00024383,2]
[372545878,1752678665365,-478.86,0.00024383,2]
[372545879,1752678665375,-506.39,0.00024383,2]
[372545880,1752678665384,-912.0,0.00024383,2]
[372545881,1752678665396,-6795.07,0.00024383,2]
[372545882,1752678665406,-1065.94,0.00024383,2]
[372545883,1752678665415,-5003.29,0.00024383,2]
[372545884,1752678665425,-524.52,0.00024383,2]
[372545885,1752678665435,-151.0,0.00024383,7]
[372545886,1752678665444,-460.0,0.00024383,2]
[372545887,1752678665454,-151.0,0.00024383,7]
[372545888,1752678665463,-158.31458231,0.00024383,2]
[372545889,1752678665473,-677.7,0.00024383,2]
[372545890,1752678665483,-2241.66,0.00024383,2]
[372545891,1752678665495,-3256.22,0.00024383,2]
[372545892,1752678665504,-2858.44,0.00024383,2]
[372545893,1752678665514,-2825.25,0.00024383,2]
[372545894,1752678665524,-827.57,0.00024383,2]
[372545895,1752678665534,-1898.44,0.00024383,2]
[372545896,1752678665544,-918.75,0.00024383,2]
[372545897,1752678665553,-968.18,0.00024383,2]
[372545898,1752678665563,-558.7,0.00024383,2]
[372545899,1752678665572,-540.85,0.00024383,2]
[372545900,1752678665588,-587.96,0.00024383,2]
[372545901,1752678665598,-460.0,0.00024383,2]
[372545902,1752678665608,-520.43,0.00024383,2]
[372545903,1752678665617,-1950.0,0.00024384,2]
[372545904,1752678665628,-729.0,0.00024384,2]
[372545905,1752678665637,-456.0,0.00024384,2]
[372545906,1752678665647,-500.0,0.00024384,2]
[372545907,1752678665656,-5696.05,0.000244,7]
[372545908,1752678665666,-3543.36,0.000244,7]
[372545909,1752678665676,-151.0,0.000244,7]
[372545910,1752678665686,-151.0,0.000244,7]
[372545911,1752678665696,-151.0,0.000244,7]
[372545912,1752678665706,-151.0,0.000244,7]
[372545913,1752678665716,-151.0,0.000244,7]
[372545914,1752678665727,-205.0,0.0002442,2]
[372545915,1752678665739,-3845.19834937,0.00024452,11]
[372545916,1752678665749,-42183.86,0.000245,7]
[372545917,1752678665759,-700.0,0.00024602,2]
[372545918,1752678665769,-306.46244474,0.00024602,31]
[372545919,1752678665779,-2858.45138413,0.00024609,2]
[372545920,1752678665794,-160.0,0.00024611,14]
[372545921,1752678665805,-220.4,0.00024624,7]
[372545922,1752678665815,-4000.0,0.00024635,4]
[372545923,1752678665824,-239.84119403,0.00024642,2]
[372545924,1752678665834,-94847.151229,0.0002465,2]
[372545925,1752678665844,-151.0,0.0002465,7]
[372545926,1752678665855,-471.71,0.00024657,2]
[372545927,1752678665865,-508.85,0.00024657,2]
[372545928,1752678665875,-565.48,0.00024657,2]
[372545929,1752678665884,-498.46,0.00024657,2]
[372545930,1752678665894,-575.56,0.00024657,2]
[372545931,1752678665903,-736.25,0.00024657,2]
[372545932,1752678665913,-775.35,0.00024657,2]
[372545933,1752678665923,-460.0,0.00024657,2]
[372545934,1752678665933,-151.0,0.00024657,7]
[372545935,1752678665942,-151.0,0.00024657,7]
[372545936,1752678665952,-460.0,0.00024657,2]
[372545937,1752678665962,-151.0,0.00024657,7]
[372545938,1752678665972,-214.65,0.00024657,2]
[372545939,1752678665982,-2705.43,0.00024657,2]
[372545940,1752678665996,-306.4,0.00024657,2]
[372545941,1752678666007,-1116.34,0.00024657,2]
[372545942,1752678666018,-498.83728882,0.00024657,2]
[372545943,1752678666028,-718.95,0.00024657,2]
[372545944,1752678666039,-5356.15,0.00024657,2]
[372545945,1752678666049,-2292.35,0.00024657,2]
[372545946,1752678666059,-1737.25,0.00024657,2]
[372545947,1752678666069,-641.9,0.00024657,2]
[372545948,1752678666078,-1414.64,0.00024657,2]
[372545949,1752678666088,-460.0,0.00024657,2]
[372545950,1752678666098,-3615.07,0.00024657,2]
[372545951,1752678666108,-846.66,0.00024657,2]
[372545952,1752678666118,-478.86,0.00024657,2]
[372545953,1752678666128,-506.39,0.00024657,2]
[372545954,1752678666137,-912.0,0.00024657,2]
[372545955,1752678666147,-6795.07,0.00024657,2]
[372545956,1752678666156,-1065.94,0.00024657,2]
[372545957,1752678666166,-5003.29,0.00024657,2]
[372545958,1752678666176,-524.52,0.00024657,2]
[372545959,1752678666185,-460.0,0.00024657,2]
[372545960,1752678666195,-677.7,0.00024657,2]
[372545961,1752678666204,-2241.66,0.00024657,2]
[372545962,1752678666213,-3256.22,0.00024657,2]
[372545963,1752678666224,-2858.44,0.00024657,2]
[372545964,1752678666233,-2825.25,0.00024657,2]
[372545965,1752678666247,-827.57,0.00024657,2]
[372545966,1752678666256,-1898.44,0.00024657,2]
[372545967,1752678666265,-918.75,0.00024657,2]
[372545968,1752678666275,-968.18,0.00024657,2]
[372545969,1752678666284,-540.85,0.00024657,2]
[372545970,1752678666294,-587.96,0.00024657,2]
[372545971,1752678666305,-460.0,0.00024657,2]
[372545972,1752678666316,-520.43,0.00024657,2]
[372545973,1752678666327,-161.49016983,0.00024658,2]
[372545974,1752678666336,-200.0,0.00024658,15]
[372545975,1752678666346,-1950.0,0.00024658,2]
[372545976,1752678666357,-729.0,0.00024658,2]
[372545977,1752678666367,-456.0,0.00024658,2]
[372545978,1752678666376,-151.0,0.00024658,2]
[372545979,1752678666385,-3845.19834937,0.00024659,11]
[372545980,1752678666395,-5000.0,0.00024661,3]
[372545981,1752678666404,-600.0,0.0002467,2]
[372545982,1752678666414,-500.0,0.0002468,2]
[372545983,1752678666423,-823.0,0.000247,2]
[372545984,1752678666432,-2500.0,0.00024718,2]
[372545985,1752678666441,-205.0,0.0002474,2]
[372545986,1752678666451,-621.73982864,0.00024777,2]
[372545987,1752678666460,-960.0,0.00024834,2]
[372545988,1752678666469,-254.981468,0.00024839,2]
[372545989,1752678666478,-3845.19834937,0.00024866,12]
[372545990,1752678666491,-581174.65637998,0.0002487,4]
[372545991,1752678666570,-12148.5,0.0002487,4]
[372545992,1752678666583,-18878.59712846,0.0002487,4]
[372545993,1752678666595,-7326.39551745,0.0002487,4]
[372545998,1752678842729,78.84863289,0.000185,2]
[372545999,1752678842756,72.15136711,0.000185,2]
[372546000,1752678843074,151.0,0.000173,2]
[372546001,1752678843401,151.0,0.00016,2]
[372546007,1752678939982,821.46213069,0.00018965,2]
[372546016,1752679036743,286.03587,0.00013699,2]
[372546023,1752679115795,2014.54094516,0.00018978,2]
[372546030,1752679175218,718.77936431,0.00018962,2]
[372546034,1752679220305,787.11492749,0.00018962,2]
[372546035,1752679221073,1768.0,0.00027397,120]
[372546049,1752679406136,1343.02729676,0.00018955,2]
[372546051,1752679416819,1008.34883172,0.00018954,2]
[372546058,1752679496835,900.0,0.00018574,2]
[372546059,1752679498384,-300.0,0.00019053,2]
[372546060,1752679498410,-460.49753492,0.00019053,2]
[372546061,1752679498435,-500.0,0.00019053,2]
[372546062,1752679498462,-500.0,0.00019053,2]
[372546063,1752679498489,-703.56738136,0.00019053,2]
[372546064,1752679498516,-500.0,0.00019053,2]
[372546065,1752679498541,-500.0,0.00019053,2]
[372546066,1752679498566,-500.0,0.00019053,2]
[372546067,1752679498596,-500.0,0.00019053,2]
[372546068,1752679498623,-500.0,0.00019053,2]
[372546069,1752679498653,-703.56738136,0.00019053,2]
[372546070,1752679498678,-236.45200118,0.00019053,2]
[372546071,1752679498702,-347.6196437,0.00019053,2]
[372546072,1752679498727,-500.0,0.00019053,2]
[372546073,1752679498755,-500.0,0.00019053,2]
[372546074,1752679498780,-500.0,0.00019053,2]
[372546075,1752679498804,-500.0,0.00019053,2]
[372546076,1752679498831,-500.0,0.00019053,2]
[372546077,1752679498858,-500.0,0.00019053,2]
[372546078,1752679498892,-500.0,0.00019053,2]
[372546079,1752679498916,-500.0,0.00019053,2]
[372546080,1752679498943,-500.0,0.00019053,2]
[372546081,1752679498968,-500.0,0.00019053,2]
[372546082,1752679498993,-616.01852077,0.00019053,2]
[372546083,1752679499019,-500.0,0.00019053,2]
[372546084,1752679499044,-500.0,0.00019053,2]
[372546085,1752679499068,-500.0,0.00019053,2]
[372546086,1752679499092,-500.0,0.00019053,2]
[372546087,1752679499116,-500.0,0.00019053,2]
[372546088,1752679499141,-500.0,0.00019053,2]
[372546089,1752679499165,-500.0,0.00019053,2]
[372546090,1752679499192,-500.0,0.00019053,2]
[372546091,1752679499219,-500.0,0.00019053,2]
[372546092,1752679499244,-500.0,0.00019053,2]
[372546093,1752679499268,-500.0,0.00019053,2]
[372546094,1752679499291,-500.0,0.00019053,2]
[372546095,1752679499316,-500.0,0.00019053,2]
[372546096,1752679499343,-703.56738136,0.00019053,2]
[372546097,1752679499369,-500.0,0.00019053,2]
[372546098,1752679499394,-500.0,0.00019053,2]
[372546099,1752679499421,-703.56738136,0.00019053,2]
[372546100,1752679499448,-642.97047533,0.00019053,2]
[372546101,1752679499474,-500.0,0.00019053,2]
[372546102,1752679499500,-500.0,0.00019053,2]
[372546103,1752679499527,-703.56738136,0.00019053,2]
[372546104,1752679499554,-500.0,0.00019053,2]
[372546105,1752679499586,-500.0,0.00019053,2]
[372546106,1752679499619,-703.56738136,0.00019053,2]
[372546107,1752679499644,-500.0,0.00019053,2]
[372546108,1752679499670,-500.0,0.00019053,2]
[372546109,1752679499700,-703.56738136,0.00019053,2]
[372546110,1752679499727,-500.0,0.00019053,2]
[372546111,1752679499758,-703.56738136,0.00019053,2]